Workbook

Sheet ORÇAMENTO
A1: <---- NUMERAR SERVIÇOS PARA CPU | C1: Ministério da Integração e do Desenvolvimento Regional - MIDR
C2: Companhia de Desenvolvimento dos Vales do São Francisco e do Parnaíba
C3: 1ª Superintendência Regional
B5: OBRA: | C5: PAVIMENTAÇÃO ASFÁLTICA EM PMF (PRE-MIST. A FRIO) - RECAPEAMENTO - DISTRITO DE ITAPIRU - (RUBIM-MG)
B6: DATA: | C6: SETEMBRO DE 2023 | G6: BDI Serviços: | I6: ='BDI SERV'!D31/100 -> 0.2122 | N6: .
B7: PRAZO DE EXECUÇÃO: 90 DIAS | G7: BDI Fornecimento: | I7: ='BDI FORN'!D31/100 -> 0.15
B8: ITEM | C8: DISCRIMINAÇÃO | D8: REFER. | E8: UNID. | F8: QUANT. | G8: P. UNITÁRIO | H8: P.UNIT.C/ BDI | I8: P. TOTAL | J8: =I34 -> 682870.24
A9: A | B9: 1 | C9: SERVIÇOS PRELIMINARES | I9: =SUM(I10:I13) -> 54421.53 | J9: =I9/I34 -> 0.07969527271
A10: 1 | B10: 1.1 | C10: MOBILIZAÇÃO E DESMOBILIZAÇÃO | D10: CPU.1 | E10: GL | F10: 1 | G10: =VLOOKUP(A10,CPU!$A$1:$N$4616,9) -> 10697.46 | H10: =VLOOKUP(A10,CPU!$A$1:$N$4616,10) -> 12967.46101 | I10: =ROUND(F10*H10,2) -> 12967.46 | J10: =I10/$I$34 -> 0.01898963996 | K10: =G10*(1+I$6)-H10 -> 0
A11: 2 | B11: 1.2 | C11: ADMINISTRAÇÃO LOCAL | D11: CPU.2 | E11: GL | F11: 1 | G11: =VLOOKUP(A11,CPU!$A$1:$N$4616,9) -> 25714.89 | H11: =VLOOKUP(A11,CPU!$A$1:$N$4616,10) -> 31171.58966 | I11: =ROUND(F11*H11,2) -> 31171.59 | J11: =I11/$I$34 -> 0.04564789644 | K11: =G11*(1+I$6)-H11 -> 0
A12: 3 | B12: 1.3 | C12: CANTEIRO DE OBRAS | D12: CPU.3 | E12: GL | F12: 1 | G12: =VLOOKUP(A12,CPU!$A$1:$N$4616,9) -> 6950.25 | H12: =VLOOKUP(A12,CPU!$A$1:$N$4616,10) -> 8425.09305 | I12: =ROUND(F12*H12,2) -> 8425.09 | J12: =I12/$I$34 -> 0.01233776127 | K12: 0
A13: 4 | B13: 1.4 | C13: PLACA DE OBRA EM CHAPA DE AÇO GALVANIZADO | D13: 74209/001 | E13: M2 | F13: 4.5 | G13: =VLOOKUP(A13,CPU!$A$1:$N$4616,9) -> 340.5 | H13: =VLOOKUP(A13,CPU!$A$1:$N$4616,10) -> 412.7541 | I13: =ROUND(F13*H13,2) -> 1857.39 | J13: =I13/$I$34 -> 0.002719975028 | K13: 0
A14: B | B14: 2 | C14: PAVIMENTAÇÃO | I14: =SUM(I15:I17) -> 174473.65 | J14: =I14/I34 -> 0.2555004447
A15: 10 | B15: 2.1 | C15: RECOMPOSIÇÃO DE BASE E OU SUB-BASE PARA REMENDO PROFUNDO DE BICA CORRIDA - INCLUSO RETIRADA E COLOCAÇÃO DO MATERIAL | D15: 101835 | E15: M3 | F15: 30 | G15: =VLOOKUP(A15,CPU!$A$1:$N$4616,9) -> 241.28 | H15: =VLOOKUP(A15,CPU!$A$1:$N$4616,10) -> 292.479616 | I15: =ROUND(F15*H15,2) -> 8774.39 | J15: =I15/$I$34 -> 0.01284927866 | K15: 0
A16: 11 | B16: 2.2 | C16: PINTURA DE LIGAÇÃO COM EMULSÃO ASFÁLTICA RR-1C | D16: 96402 | E16: M2 | F16: 11600 | G16: =VLOOKUP(A16,CPU!$A$1:$N$4616,9) -> 1.01 | H16: =VLOOKUP(A16,CPU!$A$1:$N$4616,10) -> 1.224322 | I16: =ROUND(F16*H16,2) -> 14202.14 | J16: =I16/$I$34 -> 0.02079771407 | K16: 0
A17: 12 | B17: 2.3 | C17: EXECUÇÃO DE PAVIMENTO COM APLICAÇÃO DE PRÉ-MISTURADO A FRIO, CAMADA DE ROLAMENTO - EXCLUSIVE TRANSPORTE | D17: 100624 | E17: M3 | F17: 300 | G17: =VLOOKUP(A17,CPU!$A$1:$N$4616,9) -> 416.59 | H17: =VLOOKUP(A17,CPU!$A$1:$N$4616,10) -> 504.990398 | I17: 151497.12 | J17: =I17/$I$34 -> 0.221853452 | K17: 0
A18: C | B18: 3 | C18: TRANSPORTE DE MATERIAIS | I18: =SUM(I19:I20) -> 40099.59 | J18: =I18/I34 -> 0.05872212267
A19: 14 | B19: 3.1 | C19: TRANSPORTE COM CAMINHÃO BASCULANTE, EM VIA URBANA PAVIMENTADA | D19: 95427 | E19: M3XKM | F19: 17000.00488 | G19: =VLOOKUP(A19,CPU!$A$1:$N$4616,9,0) -> 0.73 | H19: =VLOOKUP(A19,CPU!$A$1:$N$4616,10,0) -> 0.884906 | I19: =ROUND(F19*H19,2) -> 15043.41 | J19: =I19/$I$34 -> 0.0220296758 | K19: 0
A20: 14.5 | B20: 3.2 | C20: TRANSPORTE COM CAMINHÃO BASCULANTE, EM VIA DE REVESTIMENTO PRIMÁRIO | D20: 95426 | E20: M3XKM | F20: 13000.00085 | G20: =VLOOKUP(A20,CPU!$A$1:$N$4616,9,0) -> 1.59 | H20: =VLOOKUP(A20,CPU!$A$1:$N$4616,10,0) -> 1.927398 | I20: =ROUND(F20*H20,2) -> 25056.18 | J20: =I20/$I$34 -> 0.03669244687
A21: E | B21: 4 | C21: OBRAS COMPLEMENTARES | I21: =SUM(I22:I27) -> 131208.49 | J21: =I21/I34 -> 0.192142639
A22: 15 | B22: 4.1 | C22: EXECUÇÃO DE SARJETA DE CONCRETO USINADO, MOLDADA IN LOCO EM TRECHO RETO, 30 CM BASE X 5 CM ALTURA | D22: 94287a | E22: M | F22: 1800 | G22: =VLOOKUP(A22,CPU!$A$1:$N$4616,9,0) -> 34.83 | H22: =VLOOKUP(A22,CPU!$A$1:$N$4616,10,0) -> 42.220926 | I22: =ROUND(F22*H22,2) -> 75997.67 | J22: =I22/$I$34 -> 0.1112915244 | K22: 0
A23: 16 | B23: 4.2 | C23: FORNECIMENTO E INSTALAÇÃO DE PLACA DE SINALIZAÇÃO VIÁRIA - REGULAMENTAÇÃO (FAIXA DE PEDESTRE E OUTROS) - CONFORME PROJETO | D23: CPU.4 | E23: UNID | F23: 18 | G23: =VLOOKUP(A23,CPU!$A$1:$N$4616,9,0) -> 488.04 | H23: =VLOOKUP(A23,CPU!$A$1:$N$4616,10,0) -> 591.602088 | I23: =ROUND(F23*H23,2) -> 10648.84 | J23: =I23/$I$34 -> 0.01559423647 | K23: 0
A24: 17 | B24: 4.3 | C24: FORNECIMENTO E INSTALAÇÃO DE PLACA DE SINALIZAÇÃO VIÁRIA - REGULAMENTAÇÃO (PARE) | D24: CPU.5 | E24: UNID | F24: 16 | G24: =VLOOKUP(A24,CPU!$A$1:$N$4616,9,0) -> 482.58 | H24: =VLOOKUP(A24,CPU!$A$1:$N$4616,10,0) -> 584.98 | I24: =ROUND(F24*H24,2) -> 9359.68 | J24: =I24/$I$34 -> 0.01370638146
A25: 18 | B25: 4.4 | C25: PINTURA DE EIXO VIÁRIO SOBRE ASFALTO COM TINTA RETRORREFLETIVA A BASE DE RESINA ACRÍLICA COM MICROESFERAS DE VIDRO, APLICAÇÃO MECÂNICA COM DEMARCADORA AUTOPROPELIDA - ESPESSURA DE 0,10 MM | D25: 102512 | E25: M | F25: 2800 | G25: =VLOOKUP(A25,CPU!$A$1:$N$4616,9,0) -> 5.84 | H25: =VLOOKUP(A25,CPU!$A$1:$N$4616,10,0) -> 7.08 | I25: =ROUND(F25*H25,2) -> 19824 | J25: 0.02903040554 | K25: -0.000752
A26: 19 | B26: 4.5 | C26: PINTURA DE FAIXA DE PEDESTRE OU ZEBRADA TINTA RETRORREFLETIVA A BASE DE RESINA ACRÍLICA COM MICROESFERAS DE VIDRO, E = 30 CM, APLICAÇÃO MANUAL | D26: 102509 | E26: M2 | F26: 350 | G26: =VLOOKUP(A26,CPU!$A$1:$N$4616,9,0) -> 25.52 | H26: =VLOOKUP(A26,CPU!$A$1:$N$4616,10,0) -> 30.94 | I26: =ROUND(F26*H26,2) -> 10829 | J26: 0.01585806404 | K26: -0.004656
A27: 20 | B27: 4.6 | C27: FORNECIMENTO E INSTALAÇÃO DE PLACA DE AÇO PARA IDENTIFICACAO DE RUA, *45 CM X 20* CM, INCLUSIVE SUPORTE EM TUBO DE AÇO GALVANIZADO (02 PLACAS POR SUPORTE) | D27: CPU.6 | E27: UN. | F27: 10 | G27: =VLOOKUP(A27,CPU!$A$1:$N$4616,9,0) -> 375.29 | H27: =VLOOKUP(A27,CPU!$A$1:$N$4616,10,0) -> 454.93 | I27: 4549.3 | J27: 0.006662027035 | K27: -0.003462
A28: F | B28: 5 | C28: TRANSPORTE DE MATERIAL ASFÁLTICO (BDI DIFERENCIADO) | I28: =SUM(I29:I30) -> 68931 | J28: =I28/I34 -> 0.100943043
A29: 21 | B29: 5.1 | C29: TRANSPORTE COM CAMINHÃO TANQUE DE TRANSPORTE DE MATERIAL ASFÁLTICO DE 30000 L, EM VIA URBANA PAVIMENTADA | D29: 102331 | E29: TXKM | F29: 48000 | G29: =VLOOKUP(A29,CPU!$A$1:$N$4616,9,0) -> 0.52 | H29: =VLOOKUP(A29,CPU!$A$1:$N$4616,10,0) -> 0.598 | I29: =ROUND(F29*H29,2) -> 28704 | J29: =I29/$I$34 -> 0.04203434023 | K29: =G29*(1+I$7)-H29 -> 0
A30: 22 | B30: 5.2 | C30: TRANSPORTE COM CAMINHÃO BASCULANTE, EM VIA DE REVESTIMENTO PRIMÁRIO - MASSA ASFÁLTICA (PMF) | D30: 95430 | E30: TXKM | F30: 22000 | G30: =VLOOKUP(A30,CPU!$A$1:$N$4616,9,0) -> 1.59 | H30: =VLOOKUP(A30,CPU!$A$1:$N$4616,10,0) -> 1.8285 | I30: =ROUND(F30*H30,2) -> 40227 | J30: =I30/$I$34 -> 0.05890870277 | K30: =G30*(1+I$7)-H30 -> 0
A31: G | B31: 6 | C31: FORNECIMENTOS - MATERIAL ASFÁLTICO (BDI DIFERENCIADO) | I31: =SUM(I32:I33) -> 213735.98 | J31: =I31/I34 -> 0.3129964779
A32: 23 | B32: 6.2 | C32: AQUISIÇÃO DE EMULSAO ASFALTICA CATIONICA RR-1C - EXCLUSIVE TRANSPORTE | D32: CPU.7 | E32: T | F32: 5.3 | G32: =VLOOKUP(A32,CPU!$A$1:$N$4616,9,0) -> 2706.7 | H32: =VLOOKUP(A32,CPU!$A$1:$N$4616,10,0) -> 3112.705 | I32: =ROUND(F32*H32,2) -> 16497.34 | J32: =I32/$I$34 -> 0.02415882115 | K32: 0
A33: 24 | B33: 6.3 | C33: AQUISIÇÃO DE EMULSAO ASFALTICA CATIONICA RL-1C - EXCLUSIVE TRANSPORTE | D33: CPU.8 | E33: T | F33: 57 | G33: =VLOOKUP(A33,CPU!$A$1:$N$4616,9,0) -> 3008.98 | H33: =VLOOKUP(A33,CPU!$A$1:$N$4616,10,0) -> 3460.327 | I33: =ROUND(F33*H33,2) -> 197238.64 | J33: =I33/$I$34 -> 0.2888376568 | K33: 0
B34: TOTAL GERAL DA OBRA COM BDI | I34: =SUM(I9,I14,I18,I21,I28,I31) -> 682870.24 | J34: =I34/F16*2 -> 117.7362483 | K34: / m²
L37: Pavimentação em Distrito - Transporte em Terra

Sheet CPU
A1: 1 | B1: CODEVASF | E1: COMPOSIÇÃO DE PREÇO UNITÁRIO | I1: =H11 -> 10697.46 | J1: =H13 -> 12967.46101 | K1: BDI CALCULADO: | M1: =ORÇAMENTO!I6 -> 0.2122
B2: OBRA: | C2: =ORÇAMENTO!C5 -> PAVIMENTAÇÃO ASFÁLTICA EM PMF (PRE-MIST. A FRIO) - RECAPEAMENTO - DISTRITO DE ITAPIRU - (RUBIM-MG) | G2: DATA: | H2: =ORÇAMENTO!C6 -> SETEMBRO DE 2023 | K2: BDI DIFERENCIADO: | M2: ='BDI FORN'!D31/100 -> 0.15
B3: SERVIÇO: | C3: =VLOOKUP(A1,ORÇAMENTO!A10:I22,3) -> MOBILIZAÇÃO E DESMOBILIZAÇÃO | E3: Referência: | F3: =VLOOKUP(A1,ORÇAMENTO!A10:I22,4) -> CPU.1 | G3: UNIDADE: | H3: =VLOOKUP(A1,ORÇAMENTO!A10:I22,5) -> GL
B5: TIPO ITEM | C5: CODIGO ITEM | D5: DESCRIÇÃO ITEM | E5: UNIDADE ITEM | F5: COEFICIENTE | G5: PRECO UNITARIO | H5: CUSTO TOTAL
B6: COMPOSICAO | C6: 89876 | D6: CAMINHÃO BASCULANTE 14 M3, COM CAVALO MECÂNICO DE CAPACIDADE MÁXIMA DE TRAÇÃO COMBINADO DE 36000 KG, POTÊNCIA 286 CV, INCLUSIVE SEMIREBOQUE COM CAÇAMBA METÁLICA | E6: CHP DIURNO. | F6: 16 | G6: 316.13 | H6: =ROUNDDOWN(F6*G6,2) -> 5058.08
B7: COMPOSICAO | C7: 89877 | D7: CAMINHÃO BASCULANTE 14 M3, COM CAVALO MECÂNICO DE CAPACIDADE MÁXIMA DE TRAÇÃO COMBINADO DE 36000 KG, POTÊNCIA 286 CV, INCLUSIVE SEMIREBOQUE COM CAÇAMBA METÁLICA | E7: CHI DIURNO. | F7: 16 | G7: 89.75 | H7: =ROUNDDOWN(F7*G7,2) -> 1436
B8: COMPOSICAO | C8: 5914640 | D8: TRANSPORTE COM CAVALO MECÂNICO COM SEMIRREBOQUE COM CAPACIDADE DE 30 T - RODOVIA PAVIMENTADA | E8: T.KM | F8: 6157 | G8: 0.58 | H8: =ROUNDDOWN(F8*G8,2) -> 3571.06
B9: COMPOSIÇÃO | C9: 88316 | D9: SERVENTE COM ENCARGOS COMPLEMENTARES | E9: H | F9: 32 | G9: 19.76 | H9: =ROUNDDOWN(F9*G9,2) -> 632.32
B10: PRODUÇÃO DA EQUIPE | E10: 1 | F10: CUSTO | H10: =SUM(H6:H9) -> 10697.46
B11: TOTAL | H11: =H10/E10 -> 10697.46
B12: BDI % | H12: =1+$M$1 -> 1.2122
B13: TOTAL DO SERVIÇO - R$ | H13: =H11*H12 -> 12967.46101
A15: =A1+1 -> 2 | B15: CODEVASF | E15: COMPOSIÇÃO DE PREÇO UNITÁRIO | I15: =H29 -> 25714.89 | J15: =H31 -> 31171.58966
B16: OBRA: | C16: =$C$2 -> PAVIMENTAÇÃO ASFÁLTICA EM PMF (PRE-MIST. A FRIO) - RECAPEAMENTO - DISTRITO DE ITAPIRU - (RUBIM-MG) | G16: DATA: | H16: =$H$2 -> SETEMBRO DE 2023
B17: SERVIÇO: | C17: =VLOOKUP(A15,ORÇAMENTO!$A$10:$I$22,3) -> ADMINISTRAÇÃO LOCAL | E17: SINAPI | F17: CPU | G17: UNIDADE: | H17: =VLOOKUP(A15,ORÇAMENTO!$A$10:$I$22,5) -> GL
B19: TIPO ITEM | C19: CODIGO ITEM | D19: DESCRIÇÃO ITEM | E19: UNIDADE ITEM | F19: COEFICIENTE | G19: PRECO UNITARIO | H19: CUSTO TOTAL
B20: INSUMO | C20: 14250 | D20: ENERGIA ELÉTRICA | E20: kwh | F20: 60 | G20: 0.94 | H20: =ROUNDDOWN(F20*G20,2) -> 56.4
B21: INSUMO | C21: 44480 | D21: TARIFA "A" - ÁGUA/ESGOTO | E21: m³ | F21: 6 | G21: 17.78 | H21: 106.68
B22: COTAÇÃO | C22: MERC. | D22: TELEFONE (PLANO CONTROLE) | E22: UNID | F22: 2 | G22: 59.9 | H22: 119.8
B23: INSUMO | C23: ED-50155 SEINFRA | D23: BANHEIRO QUÍMICO 110 X 120 X 230 CM COM MANUTENÇÃO (CONSIDERANDO OBRAS SIMULTÂNEAS) | E23: MÊS | F23: 1 | G23: 820 | H23: 820
B24: COMPOSICAO | C24: 90777 | D24: Engenheiro Civil Júnior com encargos complementares | E24: H | F24: 25 | G24: 114.12 | H24: 2853
B25: COMPOSICAO | C25: 90776 | D25: Encarregado Geral com encargos complementares | E25: H | F25: 50 | G25: 57.73 | H25: 2886.5
B26: COMPOSICAO | C26: 88321 | D26: Tecnico de Laboratório com encargos complementares | E26: H | F26: 25 | G26: 45.45 | H26: 1136.25
B27: COMPOSICAO | C27: 90772 | D27: Auxiliar de escritório com encargos complementares | E27: H | F27: 25 | G27: 23.72 | H27: 593
B28: PRODUÇÃO DA EQUIPE | E28: =1/3 -> 0.3333333333 | F28: CUSTO | H28: =SUM(H20:H27) -> 8571.63
B29: TOTAL | H29: =H28/E28 -> 25714.89
B30: BDI % | H30: =1+$M$1 -> 1.2122
B31: TOTAL DO SERVIÇO - R$ | H31: =H29*H30 -> 31171.58966
A33: =A15+1 -> 3 | B33: CODEVASF | E33: COMPOSIÇÃO DE PREÇO UNITÁRIO | I33: =H43 -> 6950.25 | J33: =H45 -> 8425.09305
B34: OBRA: | C34: =$C$2 -> PAVIMENTAÇÃO ASFÁLTICA EM PMF (PRE-MIST. A FRIO) - RECAPEAMENTO - DISTRITO DE ITAPIRU - (RUBIM-MG) | G34: DATA: | H34: =$H$2 -> SETEMBRO DE 2023
B35: SERVIÇO: | C35: =VLOOKUP(A33,ORÇAMENTO!$A$10:$I$22,3) -> CANTEIRO DE OBRAS | E35: SINAPI | F35: =VLOOKUP(A33,ORÇAMENTO!$A$10:$I$22,4) -> CPU.3 | G35: UNIDADE: | H35: =VLOOKUP(A33,ORÇAMENTO!$A$10:$I$22,5) -> GL
B37: TIPO ITEM | C37: CODIGO ITEM | D37: DESCRIÇÃO ITEM | E37: UNIDADE ITEM | F37: COEFICIENTE | G37: PRECO UNITARIO | H37: CUSTO TOTAL
B38: INSUMO | C38: 10775 | D38: ALUGUEL DE IMÓVEL OU CONTEINER QUE ATENDA AOS REQUISITOS MÍNIMOS PARA INSTALAÇÃO DO CANTEIRO DE OBRAS | E38: MÊS | F38: 3 | G38: 975 | H38: =ROUNDDOWN(F38*G38,2) -> 2925
B39: INSUMO | C39: 10779 | D39: LOCACAO DE CONTAINER 2,30 X 4,30 M, ALT. 2,50 M, P/ SANITARIO, C/ 5 BACIAS, 1 LAVATORIO E 4 MICTORIOS | E39: MÊS | F39: 3 | G39: 1218.75 | H39: =ROUNDDOWN(F39*G39,2) -> 3656.25
B40: INSUMO | C40: 37525 | D40: TELA PLASTICA TECIDA LISTRADA BRANCA E LARANJA, TIPO GUARDA CORPO, EM POLIETILENO MONOFILADO, ROLO 1,20 X 50 M (L X C) | E40: M | F40: 100 | G40: 3.69 | H40: =ROUNDDOWN(F40*G40,2) -> 369
H41: =ROUNDDOWN(F41*G41,2) -> 0
B42: PRODUÇÃO DA EQUIPE | E42: 1 | F42: CUSTO | H42: =SUM(H38:H41) -> 6950.25
B43: TOTAL | H43: =H42/E42 -> 6950.25
B44: BDI % | H44: =1+$M$1 -> 1.2122
B45: TOTAL DO SERVIÇO - R$ | H45: =H43*H44 -> 8425.09305
A47: =A33+1 -> 4 | B47: CODEVASF | E47: COMPOSIÇÃO DE PREÇO UNITÁRIO | I47: =H60 -> 340.5 | J47: =H62 -> 412.7541
B48: OBRA: | C48: =$C$2 -> PAVIMENTAÇÃO ASFÁLTICA EM PMF (PRE-MIST. A FRIO) - RECAPEAMENTO - DISTRITO DE ITAPIRU - (RUBIM-MG) | G48: DATA: | H48: =$H$2 -> SETEMBRO DE 2023
B49: SERVIÇO: | C49: =VLOOKUP(A47,ORÇAMENTO!$A$10:$I$22,3) -> PLACA DE OBRA EM CHAPA DE AÇO GALVANIZADO | E49: SINAPI | F49: =VLOOKUP(A47,ORÇAMENTO!$A$10:$I$22,4) -> 74209/001 | G49: UNIDADE: | H49: =VLOOKUP(A47,ORÇAMENTO!$A$10:$I$22,5) -> M2
B51: TIPO ITEM | C51: CODIGO ITEM | D51: DESCRIÇÃO ITEM | E51: UNIDADE ITEM | F51: COEFICIENTE | G51: PRECO UNITARIO | H51: CUSTO TOTAL
B52: INSUMO | C52: 4509 | D52: SARRAFO *2,5 X 10* CM EM PINUS, MISTA OU EQUIVALENTE DA REGIAO - BRUTA | E52: M | F52: 3,2083000 | G52: 4,41 | H52: =ROUNDDOWN(F52*G52,2) -> 14.14
B53: INSUMO | C53: 4813 | D53: PLACA DE OBRA (PARA CONSTRUCAO CIVIL) EM CHAPA GALVANIZADA *N. 22*, ADESIVADA, DE *2,4 X 1,2* M (SEM POSTES PARA FIXACAO) | E53: M2 | F53: 1,0000000 | G53: 250,00 | H53: 250
B54: INSUMO | C54: 5065 | D54: PREGO DE ACO POLIDO COM CABECA 10 X 10 (7/8 X 17) | E54: KG | F54: 0,0113000 | G54: 36,57 | H54: 0.41
B55: INSUMO | C55: 5069 | D55: PREGO DE ACO POLIDO COM CABECA 17 X 27 (2 1/2 X 11) | E55: KG | F55: 0,0132000 | G55: 19,59 | H55: 0.25
B56: COMPOSICAO | C56: 88262 | D56: CARPINTEIRO DE FORMAS COM ENCARGOS COMPLEMENTARES | E56: H | F56: 0,3729000 | G56: 27,05 | H56: 10.08
B57: COMPOSICAO | C57: 88316 | D57: SERVENTE COM ENCARGOS COMPLEMENTARES | E57: H | F57: 1,1186000 | G57: 19,76 | H57: 22.1
B58: INSUMO | C58: 4115 | D58: MADEIRA ROLICA TRATADA, D = 12 A 15 CM, H = 3,00 M, EM EUCALIPTO OU EQUIVALENTE | E58: M | F58: 2 | G58: 21.76 | H58: 43.52
B59: PRODUÇÃO DA EQUIPE | E59: 1 | F59: CUSTO | H59: =SUM(H52:H58) -> 340.5
B60: TOTAL | H60: =H59/E59 -> 340.5
B61: BDI % | H61: =1+$M$1 -> 1.2122
B62: TOTAL DO SERVIÇO - R$ | H62: =H60*H61 -> 412.7541
A64: 10 | B64: CODEVASF | E64: COMPOSIÇÃO DE PREÇO UNITÁRIO | I64: =H75 -> 241.28 | J64: =H77 -> 292.479616
B65: OBRA: | C65: =$C$2 -> PAVIMENTAÇÃO ASFÁLTICA EM PMF (PRE-MIST. A FRIO) - RECAPEAMENTO - DISTRITO DE ITAPIRU - (RUBIM-MG) | G65: DATA: | H65: =$H$2 -> SETEMBRO DE 2023
B66: SERVIÇO: | C66: =VLOOKUP(A64,ORÇAMENTO!$A$10:$I$22,3) -> RECOMPOSIÇÃO DE BASE E OU SUB-BASE PARA REMENDO PROFUNDO DE BICA CORRIDA - INCLUSO RETIRADA E COLOCAÇÃO DO MATERIAL | E66: SINAPI | F66: =VLOOKUP(A64,ORÇAMENTO!$A$10:$I$22,4) -> 101835 | G66: UNIDADE: | H66: =VLOOKUP(A64,ORÇAMENTO!$A$10:$I$22,5) -> M3
B68: TIPO ITEM | C68: CODIGO ITEM | D68: DESCRIÇÃO ITEM | E68: UNIDADE ITEM | F68: COEFICIENTE | G68: PRECO UNITARIO | H68: CUSTO TOTAL
B69: COMPOSICAO | C69: 88316 | D69: SERVENTE COM ENCARGOS COMPLEMENTARES | E69: H | F69: 4,2001000 | G69: 19,76 | H69: =ROUNDDOWN(F69*G69,2) -> 82.99
B70: COMPOSICAO | C70: 91533 | D70: COMPACTADOR DE SOLOS DE PERCUSSÃO (SOQUETE) COM MOTOR A GASOLINA 4 TEMPOS, POTÊNCIA 4 CV | E70: CHP | F70: 0,2050000 | G70: 40.78 | H70: 8.35
B71: COMPOSICAO | C71: 91534 | D71: COMPACTADOR DE SOLOS DE PERCUSSÃO (SOQUETE) COM MOTOR A GASOLINA 4 TEMPOS, POTÊNCIA 4 CV | E71: CHI | F71: 0,8450000 | G71: 34.48 | H71: 29.13
B72: COMPOSICAO | C72: 4748 | D72: PEDRA BRITADA OU BICA CORRIDA, NAO CLASSIFICADA (POSTO PEDREIRA/FORNECEDOR, SEM FRETE) | E72: M3 | F72: 1,0000000 | G72: 97.5 | H72: 97.5
B73: INSUMO | C73: ANP | D73: EMULSÃO ASFÁLTICA PARA IMPRIMAÇÃO (EAI) | E73: T | F73: =1.3/0.15/1000 -> 0.008666666667 | G73: =2.20561*1.2195122*1000 -> 2689.768303 | H73: 23.31
B74: PRODUÇÃO DA EQUIPE | E74: 1 | F74: CUSTO | H74: =SUM(H69:H73) -> 241.28
B75: TOTAL | H75: =H74/E74 -> 241.28
B76: BDI % | H76: =1+$M$1 -> 1.2122
B77: TOTAL DO SERVIÇO - R$ | H77: =H75*H76 -> 292.479616
A79: 11 | B79: CODEVASF | E79: COMPOSIÇÃO DE PREÇO UNITÁRIO | I79: =H94 -> 1.01 | J79: =H96 -> 1.224322
B80: OBRA: | C80: =$C$2 -> PAVIMENTAÇÃO ASFÁLTICA EM PMF (PRE-MIST. A FRIO) - RECAPEAMENTO - DISTRITO DE ITAPIRU - (RUBIM-MG) | G80: DATA: | H80: =$H$2 -> SETEMBRO DE 2023
B81: SERVIÇO: | C81: =VLOOKUP(A79,ORÇAMENTO!$A$10:$I$22,3) -> PINTURA DE LIGAÇÃO COM EMULSÃO ASFÁLTICA RR-1C | E81: SINAPI | F81: =VLOOKUP(A79,ORÇAMENTO!$A$10:$I$22,4) -> 96402 | G81: UNIDADE: | H81: =VLOOKUP(A79,ORÇAMENTO!$A$10:$I$22,5) -> M2
B83: TIPO ITEM | C83: CODIGO ITEM | D83: DESCRIÇÃO ITEM | E83: UNIDADE ITEM | F83: COEFICIENTE | G83: PRECO UNITARIO | H83: CUSTO TOTAL
B84: COMPOSICAO | C84: 5839 | D84: VASSOURA MECÂNICA REBOCÁVEL COM ESCOVA CILÍNDRICA, LARGURA ÚTIL DE VARRIMENTO DE 2,44 M | E84: CHP | F84: 0,0020000 | G84: 10.3 | H84: =ROUNDDOWN(F84*G84,2) -> 0.02
B85: COMPOSICAO | C85: 5841 | D85: VASSOURA MECÂNICA REBOCÁVEL COM ESCOVA CILÍNDRICA, LARGURA ÚTIL DE VARRIMENTO DE 2,44 M | E85: CHI | F85: 0,0040000 | G85: 5.18 | H85: 0.02
B86: INSUMO | C86: 41903 | D86: EMULSAO ASFALTICA CATIONICA RR-1C PARA USO EM PAVIMENTACAO ASFALTICA (FORNECIMENTO COM BDI DIFERENCIADO) | E86: KG | F86: 0,4500000 | H86: 0
B87: COMPOSICAO | C87: 83362 | D87: ESPARGIDOR DE ASFALTO PRESSURIZADO, TANQUE 6 M3 COM ISOLAÇÃO TÉRMICA, AQUECIDO COM 2 MAÇARICOS, COM BARRA ESPARGIDORA 3,60 M, MONTADO SOBRE CAMINHÃO TOCO, PBT 14.300 KG, POTÊNCIA 185 CV | E87: CHP | F87: 0,0004000 | G87: 256.34 | H87: 0.1
B88: COMPOSICAO | C88: 88316 | D88: SERVENTE COM ENCARGOS COMPLEMENTARES | E88: H | F88: 0,0055000 | G88: 19.76 | H88: 0.1
B89: COMPOSICAO | C89: 89035 | D89: TRATOR DE PNEUS, POTÊNCIA 85 CV, TRAÇÃO 4X4, PESO COM LASTRO DE 4.675 KG | E89: CHP | F89: 0,0017000 | G89: 135.08 | H89: 0.22
B90: COMPOSICAO | C90: 89036 | D90: TRATOR DE PNEUS, POTÊNCIA 85 CV, TRAÇÃO 4X4, PESO COM LASTRO DE 4.675 KG | E90: CHI | F90: 0,0038000 | G90: 56.48 | H90: 0.21
B91: COMPOSICAO | C91: 91486 | D91: ESPARGIDOR DE ASFALTO PRESSURIZADO, TANQUE 6 M3 COM ISOLAÇÃO TÉRMICA, AQUECIDO COM 2 MAÇARICOS, COM BARRA ESPARGIDORA 3,60 M, MONTADO SOBRE CAMINHÃO TOCO, PBT 14.300 KG, POTÊNCIA 185 CV | E91: CHI | F91: 0,0051000 | G91: 68.43 | H91: 0.34
H92: =ROUNDDOWN(F92*G92,2) -> 0
B93: PRODUÇÃO DA EQUIPE | E93: 1 | F93: CUSTO | H93: =SUM(H84:H92) -> 1.01
B94: TOTAL | H94: =H93/E93 -> 1.01
B95: BDI % | H95: =1+$M$1 -> 1.2122
B96: TOTAL DO SERVIÇO - R$ | H96: =H94*H95 -> 1.224322
A98: 12 | B98: CODEVASF | E98: COMPOSIÇÃO DE PREÇO UNITÁRIO | I98: =H116 -> 416.59 | J98: =H118 -> 504.990398
B99: OBRA: | C99: =$C$2 -> PAVIMENTAÇÃO ASFÁLTICA EM PMF (PRE-MIST. A FRIO) - RECAPEAMENTO - DISTRITO DE ITAPIRU - (RUBIM-MG) | G99: DATA: | H99: =$H$2 -> SETEMBRO DE 2023
B100: SERVIÇO: | C100: =VLOOKUP(A98,ORÇAMENTO!$A$10:$I$22,3) -> EXECUÇÃO DE PAVIMENTO COM APLICAÇÃO DE PRÉ-MISTURADO A FRIO, CAMADA DE ROLAMENTO - EXCLUSIVE TRANSPORTE | E100: SINAPI | F100: =VLOOKUP(A98,ORÇAMENTO!$A$10:$I$22,4) -> 100624 | G100: UNIDADE: | H100: =VLOOKUP(A98,ORÇAMENTO!$A$10:$I$22,5) -> M3
B102: TIPO ITEM | C102: CODIGO ITEM | D102: DESCRIÇÃO ITEM | E102: UNIDADE ITEM | F102: COEFICIENTE | G102: PRECO UNITARIO | H102: CUSTO TOTAL
B103: COMPOSICAO | C103: 5835 | D103: VIBROACABADORA DE ASFALTO SOBRE ESTEIRAS, LARGURA DE PAVIMENTAÇÃO 1,90 M A 5,30 M, POTÊNCIA 105 HP CAPACIDADE 450 T/H | E103: CHP | F103: 0,0280000 | G103: 396.75 | H103: =ROUNDDOWN(F103*G103,2) -> 11.1
B104: COMPOSICAO | C104: 5837 | D104: VIBROACABADORA DE ASFALTO SOBRE ESTEIRAS, LARGURA DE PAVIMENTAÇÃO 1,90 M A 5,30 M, POTÊNCIA 105 HP CAPACIDADE 450 T/H | E104: CHI | F104: 0,0580000 | G104: 165.12 | H104: 9.57
B105: COMPOSICAO | C105: 88314 | D105: RASTELEIRO COM ENCARGOS COMPLEMENTARES | E105: H | F105: 0,6860000 | G105: 26.52 | H105: 18.19
B106: COMPOSICAO | C106: 91386 | D106: CAMINHÃO BASCULANTE 10 M3, TRUCADO CABINE SIMPLES, PESO BRUTO TOTAL 23.000 KG, CARGA ÚTIL MÁXIMA 15.935 KG, DISTÂNCIA ENTRE EIXOS 4,80 M, POTÊNCIA 230 CV INCLUSIVE CAÇAMBA METÁLICA | E106: CHP | F106: 0,0280000 | G106: 252.13 | H106: 7.05
B107: COMPOSICAO | C107: 95631 | D107: ROLO COMPACTADOR VIBRATORIO TANDEM, ACO LISO, POTENCIA 125 HP, PESO SEM/COM LASTRO 10,20/11,65 T, LARGURA DE TRABALHO 1,73 M | E107: CHP | F107: 0,0460000 | G107: 228.02 | H107: 10.48
B108: COMPOSICAO | C108: 95632 | D108: ROLO COMPACTADOR VIBRATORIO TANDEM, ACO LISO, POTENCIA 125 HP, PESO SEM/COM LASTRO 10,20/11,65 T, LARGURA DE TRABALHO 1,73 M | E108: CHI | F108: 0,0400000 | G108: 89.32 | H108: 3.57
B109: COMPOSICAO | C109: 96155 | D109: TRATOR DE PNEUS COM POTÊNCIA DE 85 CV, TRAÇÃO 4X4, COM VASSOURA MECÂNICA ACOPLADA | E109: CHI | F109: 0,0520000 | G109: 61.42 | H109: 3.19
B110: COMPOSICAO | C110: 96157 | D110: TRATOR DE PNEUS COM POTÊNCIA DE 85 CV, TRAÇÃO 4X4, COM VASSOURA MECÂNICA ACOPLADA | E110: CHP | F110: 0,0340000 | G110: 144.29 | H110: 4.9
B111: COMPOSICAO | C111: 96463 | D111: ROLO COMPACTADOR DE PNEUS, ESTATICO, PRESSAO VARIAVEL, POTENCIA 110 HP, PESO SEM/COM LASTRO 10,8/27 T, LARGURA DE ROLAGEM 2,30 M | E111: CHP | F111: 0,0260000 | G111: 218.21 | H111: 5.67
B112: COMPOSICAO | C112: 96464 | D112: ROLO COMPACTADOR DE PNEUS, ESTATICO, PRESSAO VARIAVEL, POTENCIA 110 HP, PESO SEM/COM LASTRO 10,8/27 T, LARGURA DE ROLAGEM 2,30 M | E112: CHI | F112: 0,0600000 | G112: 95.83 | H112: 5.74
B113: COMPOSICAO | C113: 101027 | D113: USINAGEM DE PRÉ MISTURADO A FRIO, PARA CAMADA DE ROLAMENTO, PADRÃO DNIT FAIXA C | E113: T | F113: 2,4480000 | G113: =H141 -> 137.72 | H113: 337.13
H114: 0
B115: PRODUÇÃO DA EQUIPE | E115: 1 | F115: CUSTO | H115: =SUM(H103:H114) -> 416.59
B116: TOTAL | H116: =H115/E115 -> 416.59
B117: BDI % | H117: =1+$M$1 -> 1.2122
B118: TOTAL DO SERVIÇO - R$ | H118: =H116*H117 -> 504.990398
B120: CODEVASF | E120: COMPOSIÇÃO DE PREÇO UNITÁRIO - AUXILIAR
B121: OBRA: | C121: =$C$2 -> PAVIMENTAÇÃO ASFÁLTICA EM PMF (PRE-MIST. A FRIO) - RECAPEAMENTO - DISTRITO DE ITAPIRU - (RUBIM-MG) | G121: DATA: | H121: =$H$2 -> SETEMBRO DE 2023
B122: SERVIÇO: | C122: =D113 -> USINAGEM DE PRÉ MISTURADO A FRIO, PARA CAMADA DE ROLAMENTO, PADRÃO DNIT FAIXA C | E122: SINAPI | F122: =C113 -> 101027 | G122: UNIDADE: | H122: =E113 -> T
B124: TIPO ITEM | C124: CODIGO ITEM | D124: DESCRIÇÃO ITEM | E124: UNIDADE ITEM | F124: COEFICIENTE | G124: PRECO UNITARIO | H124: CUSTO TOTAL
B125: INSUMO | C125: 370 | D125: AREIA MEDIA - POSTO JAZIDA/FORNECEDOR (RETIRADO NA JAZIDA, SEM TRANSPORTE) | E125: M3 | F125: 0,1600000 | G125: 97.5 | H125: =ROUNDDOWN(F125*G125,2) -> 15.6
B126: INSUMO | C126: 1106 | D126: CAL HIDRATADA CH-I PARA ARGAMASSAS | E126: KG | F126: 36,9275000 | G126: 1.04 | H126: 38.4
B127: INSUMO | C127: 4720 | D127: PEDRA BRITADA N. 0, OU PEDRISCO (4,8 A 9,5 MM) POSTO PEDREIRA/FORNECEDOR, SEM FRETE | E127: M3 | F127: 0,2410000 | G127: 135.82 | H127: 32.73
B128: INSUMO | C128: 4721 | D128: PEDRA BRITADA N. 1 (9,5 a 19 MM) POSTO PEDREIRA/FORNECEDOR, SEM FRETE | E128: M3 | F128: 0,1897000 | G128: 117.64 | H128: 22.31
B129: COMPOSICAO | C129: 5940 | D129: PÁ CARREGADEIRA SOBRE RODAS, POTÊNCIA LÍQUIDA 128 HP, CAPACIDADE DA CAÇAMBA 1,7 A 2,8 M3, PESO OPERACIONAL 11632 KG | E129: CHP | F129: 0,0048000 | G129: 217.72 | H129: 1.04
B130: COMPOSICAO | C130: 5942 | D130: PÁ CARREGADEIRA SOBRE RODAS, POTÊNCIA LÍQUIDA 128 HP, CAPACIDADE DA CAÇAMBA 1,7 A 2,8 M3, PESO OPERACIONAL 11632 KG | E130: CHI | F130: 0,0253000 | G130: 95.85 | H130: 2.42
B131: COMPOSICAO | C131: 7030 | D131: TANQUE DE ASFALTO ESTACIONÁRIO COM SERPENTINA, CAPACIDADE 30.000 L | E131: CHP | F131: 0,0603000 | G131: 240.88 | H131: 14.52
B132: INSUMO | C132: 41904 | D132: EMULSAO ASFALTICA CATIONICA RL-1C PARA USO EM PAVIMENTACAO ASFALTICA (FORNECIMENTO COM BDI DIFERENCIADO) | E132: T | F132: 0,0769000 | H132: 0
B133: COMPOSICAO | C133: 88316 | D133: SERVENTE COM ENCARGOS COMPLEMENTARES | E133: H | F133: 0,0603000 | G133: 19.76 | H133: 1.19
B134: COMPOSICAO | C134: 90776 | D134: ENCARREGADO GERAL COM ENCARGOS COMPLEMENTARES | E134: H | F134: 0,0301000 | G134: 57.73 | H134: 1.73
B135: COMPOSICAO | C135: 93421 | D135: GRUPO GERADOR REBOCÁVEL, POTÊNCIA 66 KVA, MOTOR A DIESEL | E135: CHP | F135: 0,0234000 | G135: 68.29 | H135: 1.59
B136: COMPOSICAO | C136: 93422 | D136: GRUPO GERADOR REBOCÁVEL, POTÊNCIA 66 KVA, MOTOR A DIESEL | E136: CHI | F136: 0,0068000 | G136: 5.01 | H136: 0.03
B137: COMPOSICAO | C137: 93439 | D137: USINA DE ASFALTO À FRIO, CAPACIDADE DE 40 A 60 TON/HORA, ELÉTRICA POTÊNCIA 30 CV | E137: CHP | F137: 0,0234000 | G137: 228.6 | H137: 5.34
B138: COMPOSICAO | C138: 93440 | D138: USINA DE ASFALTO À FRIO, CAPACIDADE DE 40 A 60 TON/HORA, ELÉTRICA POTÊNCIA 30 CV | E138: CHI | F138: 0,0068000 | G138: 120.93 | H138: 0.82
H139: 0
B140: PRODUÇÃO DA EQUIPE | E140: 1 | F140: CUSTO | H140: =SUM(H125:H139) -> 137.72
B141: TOTAL | H141: =H140/E140 -> 137.72
A143: 14 | B143: CODEVASF | E143: COMPOSIÇÃO DE PREÇO UNITÁRIO | I143: =H151 -> 0.73 | J143: =H153 -> 0.884906
B144: OBRA: | C144: =$C$2 -> PAVIMENTAÇÃO ASFÁLTICA EM PMF (PRE-MIST. A FRIO) - RECAPEAMENTO - DISTRITO DE ITAPIRU - (RUBIM-MG) | G144: DATA: | H144: =$H$2 -> SETEMBRO DE 2023
B145: SERVIÇO: | C145: =VLOOKUP(A143,ORÇAMENTO!$A$10:$I$34,3,0) -> TRANSPORTE COM CAMINHÃO BASCULANTE, EM VIA URBANA PAVIMENTADA | E145: SINAPI | F145: =VLOOKUP(A143,ORÇAMENTO!$A$10:$I$22,4,0) -> 95427 | G145: UNIDADE: | H145: =VLOOKUP(A143,ORÇAMENTO!$A$10:$I$22,5,0) -> M3XKM
B147: TIPO ITEM | C147: CODIGO ITEM | D147: DESCRIÇÃO ITEM | E147: UNIDADE ITEM | F147: COEFICIENTE | G147: PRECO UNITARIO | H147: CUSTO TOTAL
B148: COMPOSICAO | C148: 89883 | D148: CAMINHÃO BASCULANTE 18 M3, COM CAVALO MECÂNICO DE CAPACIDADE MÁXIMA DE TRAÇÃO COMBINADO DE 45000 KG, POTÊNCIA 330 CV, INCLUSIVE SEMIREBOQUE COM CAÇAMBA METÁLICA | E148: CHP | F148: 0,0019000 | G148: 348,45 | H148: =ROUNDDOWN(F148*G148,2) -> 0.66
B149: COMPOSICAO | C149: 89884 | D149: CAMINHÃO BASCULANTE 18 M3, COM CAVALO MECÂNICO DE CAPACIDADE MÁXIMA DE TRAÇÃO COMBINADO DE 45000 KG, POTÊNCIA 330 CV, INCLUSIVE SEMIREBOQUE COM CAÇAMBA METÁLICA | E149: CHI | F149: 0,0008000 | G149: 93,65 | H149: 0.07
B150: PRODUÇÃO DA EQUIPE | E150: 1 | F150: CUSTO | H150: =SUM(H148:H149) -> 0.73
B151: TOTAL | H151: =H150/E150 -> 0.73
B152: BDI % | H152: =1+$M$1 -> 1.2122
B153: TOTAL DO SERVIÇO - R$ | H153: =H151*H152 -> 0.884906
A155: 14.5 | B155: CODEVASF | E155: COMPOSIÇÃO DE PREÇO UNITÁRIO | I155: =H163 -> 1.59 | J155: =H165 -> 1.927398
B156: OBRA: | C156: =$C$2 -> PAVIMENTAÇÃO ASFÁLTICA EM PMF (PRE-MIST. A FRIO) - RECAPEAMENTO - DISTRITO DE ITAPIRU - (RUBIM-MG) | G156: DATA: | H156: =$H$2 -> SETEMBRO DE 2023
B157: SERVIÇO: | C157: =VLOOKUP(A155,ORÇAMENTO!$A$10:$I$34,3,0) -> TRANSPORTE COM CAMINHÃO BASCULANTE, EM VIA DE REVESTIMENTO PRIMÁRIO | E157: SINAPI | F157: =VLOOKUP(A155,ORÇAMENTO!$A$10:$I$22,4,0) -> 95426 | G157: UNIDADE: | H157: =VLOOKUP(A155,ORÇAMENTO!$A$10:$I$22,5,0) -> M3XKM
B159: TIPO ITEM | C159: CODIGO ITEM | D159: DESCRIÇÃO ITEM | E159: UNIDADE ITEM | F159: COEFICIENTE | G159: PRECO UNITARIO | H159: CUSTO TOTAL
B160: COMPOSICAO | C160: 89883a | D160: CAMINHÃO BASCULANTE 18 M3, COM CAVALO MECÂNICO DE CAPACIDADE MÁXIMA DE TRAÇÃO COMBINADO DE 45000 KG, POTÊNCIA 330 CV, INCLUSIVE SEMIREBOQUE COM CAÇAMBA METÁLICA | E160: CHP | F160: 0.004 | G160: 348,45 | H160: =ROUNDDOWN(F160*G160,2) -> 1.39
B161: COMPOSICAO | C161: 89884 | D161: CAMINHÃO BASCULANTE 18 M3, COM CAVALO MECÂNICO DE CAPACIDADE MÁXIMA DE TRAÇÃO COMBINADO DE 45000 KG, POTÊNCIA 330 CV, INCLUSIVE SEMIREBOQUE COM CAÇAMBA METÁLICA | E161: CHI | F161: 0,0022000 | G161: 93,65 | H161: 0.2
B162: PRODUÇÃO DA EQUIPE | E162: 1 | F162: CUSTO | H162: =SUM(H160:H161) -> 1.59
B163: TOTAL | H163: =H162/E162 -> 1.59
B164: BDI % | H164: =1+$M$1 -> 1.2122
B165: TOTAL DO SERVIÇO - R$ | H165: =H163*H164 -> 1.927398
A167: 15 | B167: CODEVASF | E167: COMPOSIÇÃO DE PREÇO UNITÁRIO | I167: =H179 -> 34.83 | J167: =H181 -> 42.220926
B168: OBRA: | C168: =$C$2 -> PAVIMENTAÇÃO ASFÁLTICA EM PMF (PRE-MIST. A FRIO) - RECAPEAMENTO - DISTRITO DE ITAPIRU - (RUBIM-MG) | G168: DATA: | H168: =$H$2 -> SETEMBRO DE 2023
B169: SERVIÇO: | C169: =VLOOKUP(A167,ORÇAMENTO!$A$10:$I$22,3,0) -> EXECUÇÃO DE SARJETA DE CONCRETO USINADO, MOLDADA IN LOCO EM TRECHO RETO, 30 CM BASE X 5 CM ALTURA | E169: SINAPI | F169: =VLOOKUP(A167,ORÇAMENTO!$A$10:$I$22,4,0) -> 94287a | G169: UNIDADE: | H169: =VLOOKUP(A167,ORÇAMENTO!$A$10:$I$22,5,0) -> M
B171: TIPO ITEM | C171: CODIGO ITEM | D171: DESCRIÇÃO ITEM | E171: UNIDADE ITEM | F171: COEFICIENTE | G171: PRECO UNITARIO | H171: CUSTO TOTAL
B172: INSUMO | C172: 370 | D172: AREIA MEDIA - POSTO JAZIDA/FORNECEDOR (RETIRADO NA JAZIDA, SEM TRANSPORTE) | E172: M3 | F172: 0,0100000 | G172: 97,50 | H172: =ROUNDDOWN(F172*G172,2) -> 0.97
B173: INSUMO | C173: 4517 | D173: SARRAFO *2,5 X 7,5* CM EM PINUS, MISTA OU EQUIVALENTE DA REGIAO - BRUTA | E173: M | F173: 0,2000000 | G173: 3,04 | H173: 0.6
B174: INSUMO | C174: 6189 | D174: TABUA NAO APARELHADA *2,5 X 30* CM, EM MACARANDUBA/MASSARANDUBA, ANGELIM OU EQUIVALENTE DA REGIAO - BRUTA | E174: M | F174: 0,0830000 | G174: 43,21 | H174: 3.58
B175: INSUMO | C175: 34492a | D175: CONCRETO USINADO BOMBEAVEL, CLASSE DE RESISTENCIA C20, COM BRITA 0 E 1, SLUMP = 100 +/- 20 MM, EXCLUI SERVICO DE BOMBEAMENTO (NBR 8953) | E175: M3 | F175: =(0.3*0.05) -> 0.015 | G175: 550,00 | H175: 8.25
B176: COMPOSICAO | C176: 88309 | D176: PEDREIRO COM ENCARGOS COMPLEMENTARES | E176: H | F176: 0,4540000 | G176: 27,45 | H176: 12.46
B177: COMPOSICAO | C177: 88316 | D177: SERVENTE COM ENCARGOS COMPLEMENTARES | E177: H | F177: 0,4540000 | G177: 19,76 | H177: 8.97
B178: PRODUÇÃO DA EQUIPE | E178: 1 | F178: CUSTO | H178: =SUM(H172:H177) -> 34.83
B179: TOTAL | H179: =H178/E178 -> 34.83
B180: BDI % | H180: =1+$M$1 -> 1.2122
B181: TOTAL DO SERVIÇO - R$ | H181: =H179*H180 -> 42.220926
A183: 16 | B183: CODEVASF | E183: COMPOSIÇÃO DE PREÇO UNITÁRIO | I183: =H196 -> 488.04 | J183: =H198 -> 591.602088
B184: OBRA: | C184: =$C$2 -> PAVIMENTAÇÃO ASFÁLTICA EM PMF (PRE-MIST. A FRIO) - RECAPEAMENTO - DISTRITO DE ITAPIRU - (RUBIM-MG) | G184: DATA: | H184: =$H$2 -> SETEMBRO DE 2023
B185: SERVIÇO: | C185: =VLOOKUP(A183,ORÇAMENTO!$A$10:$I$33,3,0) -> FORNECIMENTO E INSTALAÇÃO DE PLACA DE SINALIZAÇÃO VIÁRIA - REGULAMENTAÇÃO (FAIXA DE PEDESTRE E OUTROS) - CONFORME PROJETO | E185: SINAPI | F185: =VLOOKUP(A183,ORÇAMENTO!$A$10:$I$33,4,0) -> CPU.4 | G185: UNIDADE: | H185: =VLOOKUP(A183,ORÇAMENTO!$A$10:$I$33,5,0) -> UNID
B187: TIPO ITEM | C187: CODIGO ITEM | D187: DESCRIÇÃO ITEM | E187: UNIDADE ITEM | F187: COEFICIENTE | G187: PRECO UNITARIO | H187: CUSTO TOTAL
B188: COMPOSICAO | C188: 94962 | D188: CONCRETO MAGRO PARA LASTRO, TRAÇO 1:4,5:4,5 (EM MASSA SECA DE CIMENTO/ AREIA / BRITA 1) | E188: M3 | F188: 0.024 | G188: 402.82 | H188: =ROUNDDOWN(F188*G188,2) -> 9.66
B189: COMPOSICAO | C189: 93358 | D189: ESCAVAÇÃO MANUAL DE VALA COM PROFUNDIDADE MENOR OU IGUAL A 1,30 M | E189: M3 | F189: 0.024 | G189: 78.17 | H189: 1.87
B190: COMPOSICAO | C190: 88309 | D190: PEDREIRO COM ENCARGOS COMPLEMENTARES | E190: H | F190: 0.2 | G190: 27.45 | H190: 5.49
B191: COMPOSICAO | C191: 88316 | D191: SERVENTE COM ENCARGOS COMPLEMENTARES | E191: H | F191: 1 | G191: 19.76 | H191: 19.76
B192: COMPOSICAO | C192: 103670 | D192: LANÇAMENTO COM USO DE BALDES, ADENSAMENTO E ACABAMENTO DE CONCRETO EM ESTRUTURAS | E192: M3 | F192: 0.024 | G192: 281.78 | H192: 6.76
B193: INSUMO | C193: 34723 | D193: PLACA DE SINALIZACAO EM CHAPA DE ACO NUM 16 COM PINTURA REFLETIVA (CIRCULAR - D=50CM) | E193: M2 | F193: =0.75*0.5 -> 0.375 | G193: 577.5 | H193: 216.56
B194: INSUMO | C194: 21013 | D194: TUBO AÇO GALVANIZADO COM COSTURA, CLASSE LEVE, DN 50 MM ( 2")E = 3,00 MM, 4,40 KG/M | E194: M | F194: 3 | G194: 75.98 | H194: 227.94
B195: PRODUÇÃO DA EQUIPE | E195: 1 | F195: CUSTO | H195: =SUM(H188:H194) -> 488.04
B196: TOTAL | H196: =H195/E195 -> 488.04
B197: BDI % | H197: =1+$M$1 -> 1.2122
B198: TOTAL DO SERVIÇO - R$ | H198: =H196*H197 -> 591.602088
A200: 17 | B200: CODEVASF | E200: COMPOSIÇÃO DE PREÇO UNITÁRIO | I200: =H213 -> 482.58 | J200: =H215 -> 584.98
B201: OBRA: | C201: =$C$2 -> PAVIMENTAÇÃO ASFÁLTICA EM PMF (PRE-MIST. A FRIO) - RECAPEAMENTO - DISTRITO DE ITAPIRU - (RUBIM-MG) | G201: DATA: | H201: =$H$2 -> SETEMBRO DE 2023
B202: SERVIÇO: | C202: =VLOOKUP(A200,ORÇAMENTO!$A$10:$I$33,3,0) -> FORNECIMENTO E INSTALAÇÃO DE PLACA DE SINALIZAÇÃO VIÁRIA - REGULAMENTAÇÃO (PARE) | E202: SINAPI | F202: =VLOOKUP(A200,ORÇAMENTO!$A$10:$I$33,4,0) -> CPU.5 | G202: UNIDADE: | H202: =VLOOKUP(A200,ORÇAMENTO!$A$10:$I$33,5,0) -> UNID
B204: TIPO ITEM | C204: CODIGO ITEM | D204: DESCRIÇÃO ITEM | E204: UNIDADE ITEM | F204: COEFICIENTE | G204: PRECO UNITARIO | H204: CUSTO TOTAL
B205: COMPOSICAO | C205: 94962 | D205: CONCRETO MAGRO PARA LASTRO, TRAÇO 1:4,5:4,5 (EM MASSA SECA DE CIMENTO/ AREIA/ BRITA 1) | E205: M3 | F205: 0.024 | G205: 397.46 | H205: =ROUNDDOWN(F205*G205,2) -> 9.53
B206: COMPOSICAO | C206: 93358 | D206: ESCAVAÇÃO MANUAL DE VALA COM PROFUNDIDADE MENOR OU IGUAL A 1,30 M | E206: M3 | F206: 0.024 | G206: 78.17 | H206: 1.87
B207: COMPOSICAO | C207: 88309 | D207: PEDREIRO COM ENCARGOS COMPLEMENTARES | E207: H | F207: 0.2 | G207: 27.45 | H207: 5.49
B208: COMPOSICAO | C208: 88316 | D208: SERVENTE COM ENCARGOS COMPLEMENTARES | E208: H | F208: 1 | G208: 19.76 | H208: 19.76
B209: COMPOSICAO | C209: 103670 | D209: LANÇAMENTO COM USO DE BALDES, ADENSAMENTO E ACABAMENTO DE CONCRETO EM ESTRUTURAS | E209: M3 | F209: 0.024 | G209: 281.66 | H209: 6.75
B210: INSUMO | C210: 34723 | D210: PLACA DE SINALIZACAO EM CHAPA DE ACO NUM 16 COM PINTURA REFLETIVA | E210: M2 | F210: =4*0.3*0.25 -> 0.3 | G210: 577.5 | H210: 173.25
B211: INSUMO | C211: 21013 | D211: TUBO AÇO GALVANIZADO COM COSTURA, CLASSE LEVE, DN 50 MM ( 2")E = 3,00 MM, *4,40* KG/M | E211: M | F211: 3.5 | G211: 75.98 | H211: 265.93
B212: PRODUÇÃO DA EQUIPE | E212: 1 | F212: CUSTO | H212: =SUM(H205:H211) -> 482.58
B213: TOTAL | H213: =H212/E212 -> 482.58
B214: BDI % | H214: =1+$M$1 -> 1.2122
B215: TOTAL DO SERVIÇO - R$ | H215: =ROUND(H213*H214,2) -> 584.98
A217: 18 | B217: CODEVASF | E217: COMPOSIÇÃO DE PREÇO UNITÁRIO | I217: =H231 -> 5.84 | J217: =H233 -> 7.08
B218: OBRA: | C218: =$C$2 -> PAVIMENTAÇÃO ASFÁLTICA EM PMF (PRE-MIST. A FRIO) - RECAPEAMENTO - DISTRITO DE ITAPIRU - (RUBIM-MG) | G218: DATA: | H218: =$H$2 -> SETEMBRO DE 2023
B219: SERVIÇO: | C219: =VLOOKUP(A217,ORÇAMENTO!$A$10:$I$33,3,0) -> PINTURA DE EIXO VIÁRIO SOBRE ASFALTO COM TINTA RETRORREFLETIVA A BASE DE RESINA ACRÍLICA COM MICROESFERAS DE VIDRO, APLICAÇÃO MECÂNICA COM DEMARCADORA AUTOPROPELIDA - ESPESSURA DE 0,10 MM | E219: SINAPI | F219: =VLOOKUP(A217,ORÇAMENTO!$A$10:$I$33,4,0) -> 102512 | G219: UNIDADE: | H219: =VLOOKUP(A217,ORÇAMENTO!$A$10:$I$33,5,0) -> M
B221: TIPO ITEM | C221: CODIGO ITEM | D221: DESCRIÇÃO ITEM | E221: UNIDADE ITEM | F221: COEFICIENTE | G221: PRECO UNITARIO | H221: CUSTO TOTAL
B222: INSUMO | C222: 5318 | D222: DILUENTE AGUARRAS | E222: L | F222: 0,0020000 | G222: 25,91 | H222: =ROUNDDOWN(F222*G222,2) -> 0.05
B223: INSUMO | C223: 7343 | D223: TINTA ACRILICA A BASE DE SOLVENTE, PARA SINALIZACAO HORIZONTAL VIARIA (NBR 11862) | E223: L | F223: 0,0430000 | G223: 17,82 | H223: 0.76
B224: INSUMO | C224: 44477 | D224: MICROESFERAS DE VIDRO PARA SINALIZACAO HORIZONTAL VIARIA, TIPO II-A (DROP-ON) | E224: KG | F224: 0,0250000 | G224: 10,74 | H224: 0.26
B225: INSUMO | C225: 44478 | D225: MICROESFERAS DE VIDRO PARA SINALIZACAO HORIZONTAL VIARIA, TIPO I-B (PREMIX) | E225: KG | F225: 0,0110000 | G225: 10,74 | H225: 0.11
B226: COMPOSICAO | C226: 88310 | D226: PINTOR COM ENCARGOS COMPLEMENTARES | E226: H | F226: 0,0340000 | G226: 28,66 | H226: 0.97
B227: COMPOSICAO | C227: 88316 | D227: SERVENTE COM ENCARGOS COMPLEMENTARES | E227: H | F227: 0,0140000 | G227: 19,76 | H227: 0.27
... 74 more rows

Sheet BDI SERV
B1: DETALHAMENTO DO BDI - SERVIÇOS
B4: Item | C4: Descrição dos Serviços | D4: % | E4: %
D5: PV | E5: CD
B7: 1 | C7: ADMINISTRAÇÃO CENTRAL | E7: 4.01
B8: 1.1 | C8: ESCRITÓRIO CENTRAL
B9: 1.2 | C9: VIAGENS
B10: 1.3 | C10: OUTROS
B12: 2 | C12: IMPOSTOS E TAXAS | D12: =SUM(D13:D16) -> 5.65 | E12: =SUM(E13:E16) -> 7.06
B13: 2.1 | C13: ISS (*) | D13: 2 | E13: =ROUND(D13*1.2515,2) -> 2.5
B14: 2.2 | C14: PIS | D14: 0.65 | E14: 0.81
B15: 2.3 | C15: Cofins | D15: 3 | E15: 3.75
B16: 2.4 | C16: CONTRIBUIÇÃO PREVIDENCIÁRIA SOBRE A RENDA BRUTA | D16: 0 | E16: 0
B18: 3 | C18: TAXA DE RISCO | E18: =SUM(E19:E22) -> 0.82
B19: 3.1 | C19: SEGURO | E19: 0.16
B20: 3.2 | C20: RISCO | E20: 0.5
B21: 3.3 | C21: GARANTIA | E21: 0.16
B23: 4 | C23: DESPESAS FINANCEIRAS | E23: 1.02
B25: 5 | C25: LUCRO | E25: 8
C27: BDI - CALCULADO | E27: =ROUND((((1+(E7+E18)/100)*(1+E23/100)*(1+E25/100)/(1-D12/100)-1)*100),2) -> 21.22
A29: BDI = ((1+((AC+S+R+G)/100))x(1+DF/100)x(1+L/100)/(1-I/100)-1)*100
B31: BDI (CALCULADO): | D31: =ROUND((((1+((E7+E18)/100))*(1+E23/100)*(1+E25/100))/(1-D12/100)-1)*100,2) -> 21.22 | E31: %
A33: (*) ISS CONFORME LEI COMPLEMENTAR Nº 006/2003 E LEI COMPLEMENTAR Nº 59/2009 QUE ALTEROU A ALÍQUOTA PARA ITENS 7 A 7.05 (ART. 9º ) - QUANT. ESTIMADA DE MATERIAIS = 30%
A37: BDI EM CONFORMIDADE COM OS ACÓRDÃOS Nº 2369/2011 e ACÓRDÃO Nº 2.622/2013 - TCU - PLENÁRIO

Sheet BDI FORN
B1: DETALHAMENTO DO BDI - FORNECIMENTO (MATERIAL ASFÁLTICO)
B4: Item | C4: Descrição dos Serviços | D4: % | E4: %
D5: PV | E5: CD
B7: 1 | C7: ADMINISTRAÇÃO CENTRAL | E7: 3.72
B8: 1.1 | C8: ESCRITÓRIO CENTRAL
B9: 1.2 | C9: VIAGENS
B10: 1.3 | C10: OUTROS
B12: 2 | C12: IMPOSTOS E TAXAS | D12: =SUM(D13:D16) -> 3.65 | E12: =SUM(E13:E16) -> 4.56
B13: 2.1 | C13: ISS (*) | E13: =ROUND(D13*1.2515,2) -> 0
B14: 2.2 | C14: PIS | D14: 0.65 | E14: 0.81
B15: 2.3 | C15: Cofins | D15: 3 | E15: 3.75
B16: 2.4 | C16: CONTRIBUIÇÃO PREVIDENCIÁRIA SOBRE A RENDA BRUTA | D16: 0 | E16: 0
B18: 3 | C18: TAXA DE RISCO | E18: =SUM(E19:E22) -> 0.92
B19: 3.1 | C19: SEGURO | E19: 0.16
B20: 3.2 | C20: RISCO | E20: 0.6
B21: 3.3 | C21: GARANTIA | E21: 0.16
B23: 4 | C23: DESPESAS FINANCEIRAS | E23: 0.85
B25: 5 | C25: LUCRO | E25: 5
C27: BDI - CALCULADO | E27: =ROUND((((1+(E7+E18)/100)*(1+E23/100)*(1+E25/100)/(1-D12/100)-1)*100),2) -> 15
A29: BDI = ((1+((AC+S+R+G)/100))x(1+DF/100)x(1+L/100)/(1-I/100)-1)*100
B31: BDI (CALCULADO): | D31: =ROUND((((1+((E7+E18)/100))*(1+E23/100)*(1+E25/100))/(1-D12/100)-1)*100,2) -> 15 | E31: %
A37: BDI EM CONFORMIDADE COM OS ACÓRDÃOS Nº 2369/2011 e ACÓRDÃO Nº 2.622/2013 - TCU - PLENÁRIO

Sheet CRONOGRAMA
B1: CRONOGRAMA FÍSICO-FINANCEIRO
B2: OBRA: | C2: =ORÇAMENTO!C5 -> PAVIMENTAÇÃO ASFÁLTICA EM PMF (PRE-MIST. A FRIO) - RECAPEAMENTO - DISTRITO DE ITAPIRU - (RUBIM-MG) | F2: VALOR: | G2: =ORÇAMENTO!I34 -> 682870.24
F3: PRAZO: | G3: 90 DIAS
B5: ITEM | C5: ETAPAS/DESCRIÇAO | D5: FISICO/ FINANCEIRO | E5: TOTAL ETAPAS | F5: MÊS 1 | G5: MÊS 2 | H5: MÊS 3 | I5: TOTAL
A6: A | B6: =VLOOKUP(A6,ORÇAMENTO!$A$9:$I$34,2) -> 1 | C6: =VLOOKUP(A6,ORÇAMENTO!$A$9:$I$34,3) -> SERVIÇOS PRELIMINARES | D6: FISICO | E6: =ROUND(E7/$G$2,4) -> 0.0797 | F6: 0.25 | G6: 0.45 | H6: 0.3 | I6: =SUM(F6:H6) -> 1
D7: FINANCEIRO | E7: =ORÇAMENTO!I9 -> 54421.53 | F7: =ROUND($E$7*F6,2) -> 13605.38 | G7: =ROUND($E$7*G6,2) -> 24489.69 | H7: =ROUND($E$7*H6,2) -> 16326.46 | I7: =SUM(F7:H7)-0.01 -> 54421.52
A8: B | B8: =VLOOKUP(A8,ORÇAMENTO!$A$9:$I$34,2) -> 2 | C8: =VLOOKUP(A8,ORÇAMENTO!$A$9:$I$34,3) -> PAVIMENTAÇÃO | D8: FISICO | E8: =ROUND(E9/$G$2,4) -> 0.2555 | F8: 0.25 | G8: 0.45 | H8: 0.3 | I8: =SUM(F8:H8) -> 1
D9: FINANCEIRO | E9: =ORÇAMENTO!I14 -> 174473.65 | F9: =ROUND($E$9*F8,2) -> 43618.41 | G9: =ROUND($E$9*G8,2) -> 78513.14 | H9: =ROUND($E$9*H8,2) -> 52342.1 | I9: 174473.65
A10: C | B10: =VLOOKUP(A10,ORÇAMENTO!$A$9:$I$34,2) -> 3 | C10: =VLOOKUP(A10,ORÇAMENTO!$A$9:$I$34,3) -> TRANSPORTE DE MATERIAIS | D10: FISICO | E10: =ROUND(E11/$G$2,4) -> 0.0587 | F10: 0.25 | G10: 0.4 | H10: 0.35 | I10: 1
D11: FINANCEIRO | E11: =ORÇAMENTO!I18 -> 40099.59 | F11: =ROUND($E$11*F10,2) -> 10024.9 | G11: =ROUND($E$11*G10,2) -> 16039.84 | H11: =ROUND($E$11*H10,2) -> 14034.86 | I11: 40099.6
A12: E | B12: =VLOOKUP(A12,ORÇAMENTO!$A$9:$I$34,2) -> 4 | C12: =VLOOKUP(A12,ORÇAMENTO!$A$9:$I$34,3) -> OBRAS COMPLEMENTARES | D12: FISICO | E12: =ROUND(E13/$G$2,4) -> 0.1921 | G12: 0.4 | H12: 0.6 | I12: 1
D13: FINANCEIRO | E13: =ORÇAMENTO!I21 -> 131208.49 | F13: =ROUND($E$13*F12,2) -> 0 | G13: =ROUND($E$13*G12,2) -> 52483.4 | H13: =ROUND($E$13*H12,2) -> 78725.09 | I13: 131208.49
A14: F | B14: =VLOOKUP(A14,ORÇAMENTO!$A$9:$I$34,2) -> 5 | C14: =VLOOKUP(A14,ORÇAMENTO!$A$9:$I$34,3) -> TRANSPORTE DE MATERIAL ASFÁLTICO (BDI DIFERENCIADO) | D14: FISICO | E14: =ROUND(E15/$G$2,4) -> 0.1009 | F14: 0.25 | G14: 0.45 | H14: 0.3 | I14: 1
D15: FINANCEIRO | E15: =ORÇAMENTO!I28 -> 68931 | F15: =ROUND($E$15*F14,2) -> 17232.75 | G15: =ROUND($E$15*G14,2) -> 31018.95 | H15: =ROUND($E$15*H14,2) -> 20679.3 | I15: 68931
A16: G | B16: =VLOOKUP(A16,ORÇAMENTO!$A$9:$I$34,2) -> 6 | C16: =VLOOKUP(A16,ORÇAMENTO!$A$9:$I$34,3) -> FORNECIMENTOS - MATERIAL ASFÁLTICO (BDI DIFERENCIADO) | D16: FISICO | E16: =ROUND(E17/$G$2,4) -> 0.313 | F16: 0.25 | G16: 0.45 | H16: 0.3 | I16: 1
D17: FINANCEIRO | E17: =ORÇAMENTO!I31 -> 213735.98 | F17: =ROUND($E$17*F16,2) -> 53434 | G17: =ROUND($E$17*G16,2) -> 96181.19 | H17: =ROUND($E$17*H16,2) -> 64120.79 | I17: 213735.98
B18: TOTAL | D18: FISICO | E18: =SUM(F18:H18) -> 1.000000015 | F18: =F19/E19 -> 0.2019643439 | G18: =G19/E19 -> 0.4374567707 | H18: =H19/E19 -> 0.3605789 | I18: 1.000000015
D19: FINANCEIRO | E19: =E11+E9+E7+E13+E17+E15 -> 682870.24 | F19: =F11+F9+F7+F13+F17+F15 -> 137915.44 | G19: =G11+G9+G7+G13+G17+G15 -> 298726.21 | H19: =H11+H9+H7+H13+H17+H15 -> 246228.6 | I19: =SUM(F19:H19)-0.01 -> 682870.24
B21: OBSERVAÇÕES:
